bitfinex/quotes_SOLUSD_20250831
["timestamp","ask_amount","ask_price","bid_price","bid_amount"]
[1756602057901,26.68,205.56,205.53,0.03]
[1756602058084,26.0,205.55,205.53,4.99408792]
[1756602058885,26.0,205.55,205.53,0.03]
[1756602059094,26.0,205.55,205.53,4.99408792]
[1756602059619,10.50840553,205.58,205.53,0.03]
[1756602059620,35.82868233,205.57,205.53,0.03]
[1756602059810,0.68,205.54,205.53,0.03]
[1756602060110,5.64408792,205.56,205.53,0.03]
[1756602060282,26.68,205.54,205.53,0.03]
[1756602060482,0.68,205.54,205.53,0.03]
[1756602060697,5.54523304,205.54,205.53,0.03]
[1756602060902,0.68,205.54,205.53,0.03]
[1756602062311,4.96408792,205.57,205.53,0.03]
[1756602062614,5.64408792,205.54,205.53,0.03]
[1756602062794,0.68,205.54,205.53,0.03]
[1756602064214,5.54523304,205.54,205.53,0.03]
[1756602064507,24.10491497,205.54,205.53,0.03]
[1756602066621,50.10491497,205.54,205.53,0.03]
[1756602066982,24.10491497,205.54,205.53,0.03]
[1756602069808,19.14082705,205.54,205.53,0.03]
[1756602070004,24.10491497,205.54,205.53,0.03]
[1756602071316,21.53237895,205.54,205.53,0.03]
[1756602072300,26.0,205.55,205.53,0.03]
[1756602072606,0.06,205.59,205.53,0.03]
[1756602072607,13.65559401,205.59,205.53,0.57]
[1756602072808,2.3915519,205.58,205.53,0.57]
[1756602073009,26.0,205.56,205.53,0.57]
[1756602073210,2.3915519,205.54,205.53,0.03]
[1756602073527,41.98714591,205.54,205.53,0.03]
[1756602073732,42.66714591,205.54,205.53,0.03]
[1756602073904,47.53237895,205.54,205.53,0.03]
[1756602074413,28.3915519,205.54,205.53,0.03]
[1756602074617,29.0715519,205.54,205.53,0.03]
[1756602076001,33.93678494,205.54,205.53,0.03]
[1756602076510,31.54523304,205.54,205.53,0.03]
[1756602076913,33.93678494,205.54,205.53,0.03]
[1756602077107,2.3915519,205.55,205.53,0.03]
[1756602077702,2.3915519,205.54,205.53,0.03]
[1756602078101,7.25678494,205.54,205.53,0.03]
[1756602078344,7.93678494,205.54,205.53,0.03]
[1756602078624,21.53237895,205.54,205.53,0.03]
[1756602079606,21.53237895,205.54,205.51,0.03]
[1756602079607,39.59559401,205.52,205.51,0.03]
[1756602079803,13.59559401,205.51,205.5,0.03]
[1756602080006,66.50988743,205.51,205.5,0.03]
[1756602080504,70.44617944,205.51,205.5,0.03]
[1756602081427,72.04305079,205.51,205.5,0.03]
[1756602082213,68.05462754,205.51,205.5,0.03]
[1756602082413,76.03147404,205.51,205.49,0.03]
[1756602082720,25.20923877,205.5,205.49,0.03]
[1756602082923,25.20923877,205.5,205.48,0.03]
[1756602082924,13.59559401,205.49,205.48,0.03]
[1756602083112,21.90081552,205.49,205.48,0.03]
[1756602083916,63.22081552,205.49,205.48,0.03]
[1756602084123,68.08723237,205.49,205.48,0.03]
[1756602086131,26.08723237,205.49,205.48,0.03]
[1756602086515,21.22081552,205.49,205.48,0.03]
[1756602086721,7.62522151,205.49,205.48,0.03]
[1756602087310,7.62202614,205.49,205.48,0.03]
[1756602087938,12.48828422,205.49,205.48,0.03]
[1756602088311,9.17986097,205.49,205.48,0.03]
[1756602088510,12.48828422,205.49,205.48,0.03]
[1756602088946,7.62186737,205.49,205.48,0.03]
[1756602089441,12.48828422,205.49,205.48,0.03]
[1756602089737,7.62186737,205.49,205.48,0.03]
[1756602090134,12.48828422,205.49,205.48,0.03]
[1756602090717,68.06387823,205.49,205.48,0.03]
[1756602091941,68.04387823,205.49,205.48,0.03]
[1756602092537,29.63344412,205.49,205.48,0.03]
[1756602093040,3.63344412,205.49,205.48,0.57]
[1756602093246,7.62186737,205.49,205.48,0.03]
[1756602093442,34.49986097,205.49,205.48,0.03]
[1756602093647,33.62186737,205.49,205.48,0.03]
[1756602094439,3.63344412,205.49,205.48,0.57]
[1756602094642,29.63344412,205.49,205.48,0.03]
[1756602094823,29.63344412,205.49,205.48,0.57]
[1756602095846,33.62186737,205.49,205.48,0.03]
[1756602096534,33.62186737,205.49,205.46,0.2]
[1756602096734,7.62186737,205.48,205.44,0.03]
[1756602096937,3.98842325,205.45,205.44,0.03]
[1756602097145,29.98842325,205.46,205.44,0.03]
[1756602097860,3.98842325,205.46,205.44,0.03]
[1756602098334,3.63817244,205.45,205.44,0.03]
[1756602098535,7.62659569,205.45,205.44,0.03]
[1756602098949,13.18396001,205.45,205.44,0.03]
[1756602099156,8.31659569,205.45,205.44,0.03]
[1756602099559,7.62659569,205.45,205.44,0.03]
[1756602100653,3.63817244,205.45,205.44,0.23]
[1756602101061,26.0,205.46,205.44,0.23]
[1756602101246,3.98842325,205.47,205.44,0.23]
[1756602101845,3.98842325,205.48,205.44,0.23]
[1756602102056,3.63769968,205.47,205.44,0.03]
[1756602102250,0.69,205.52,205.45,0.2]
[1756602102251,3.98842325,205.49,205.45,0.2]
[1756602102453,3.98842325,205.47,205.44,0.03]
[1756602102958,29.98842325,205.48,205.44,0.03]
[1756602103165,7.62638999,205.47,205.44,0.03]
[1756602103370,3.98842325,205.47,205.44,0.03]
[1756602104061,3.63892131,205.46,205.44,0.03]
[1756602104259,3.98842325,205.47,205.44,0.03]
[1756602104460,3.63986837,205.46,205.44,0.03]
[1756602104649,3.98842325,205.47,205.44,0.03]
[1756602104848,3.63986837,205.46,205.44,0.03]
[1756602105052,26.0,205.48,205.44,0.03]
[1756602105368,7.6282921,205.47,205.44,0.03]
[1756602105565,3.63986885,205.46,205.44,0.03]
[1756602105770,7.6282921,205.46,205.44,0.03]
[1756602105971,0.69,205.48,205.44,0.03]
[1756602105972,3.63986885,205.45,205.44,0.03]
[1756602106342,3.63986885,205.45,205.44,0.23]
[1756602106541,0.75,205.56,205.45,4.86736432]
[1756602106769,3.63968525,205.55,205.49,3.98842325]
[1756602106964,3.98842325,205.55,205.49,3.98842325]
[1756602107268,3.98842325,205.54,205.48,4.18842325]
[1756602107953,3.98842325,205.53,205.48,0.2]
[1756602108163,3.98842325,205.49,205.45,0.2]
[1756602108474,3.98842325,205.49,205.44,0.03]
[1756602108649,3.98842325,205.49,205.44,0.23]
[1756602108848,4.04842325,205.49,205.44,0.23]
[1756602109049,0.06,205.49,205.44,0.23]
[1756602109247,4.04842325,205.49,205.44,0.23]
[1756602109747,0.06,205.49,205.44,0.23]
[1756602109948,4.04842325,205.49,205.44,0.23]
[1756602110144,4.67842325,205.48,205.44,0.03]
[1756602110347,3.98842325,205.47,205.44,0.03]
[1756602110775,3.98842325,205.46,205.44,0.03]
[1756602111070,3.98842325,205.45,205.44,0.03]
[1756602111954,3.98842325,205.46,205.44,0.03]
[1756602112142,3.98842325,205.45,205.44,0.03]
[1756602112573,3.98842325,205.46,205.44,0.03]
[1756602112760,0.69,205.47,205.44,0.03]
[1756602112954,3.98842325,205.46,205.44,0.03]
[1756602113255,0.69,205.47,205.44,0.03]
[1756602113873,3.98842325,205.46,205.44,0.03]
[1756602114073,3.98842325,205.46,205.41,4.89830847]
[1756602114377,3.98842325,205.46,205.41,1.981267]
[1756602115145,4.67842325,205.46,205.41,1.981267]
[1756602115780,0.69,205.46,205.41,10.8379938]
[1756602115987,3.98842325,205.46,205.42,0.2]
[1756602116187,3.98842325,205.46,205.41,10.8379938]
[1756602116473,3.98842325,205.46,205.41,11.0379938]
[1756602117069,3.98842325,205.47,205.41,11.0379938]
[1756602117566,4.92643111,205.49,205.42,0.2]
[1756602117567,4.04842325,205.49,205.42,0.2]
[1756602117767,4.67842325,205.48,205.41,4.89830355]
[1756602117951,3.98842325,205.47,205.42,4.926431]
[1756602118573,4.67842325,205.47,205.42,4.926431]
[1756602118877,29.98842325,205.47,205.41,4.89830355]
[1756602119173,3.98842325,205.45,205.41,46.016401]
[1756602120273,4.67842325,205.46,205.41,46.016401]
[1756602120475,0.69,205.46,205.41,50.00482425]
[1756602120673,0.75,205.49,205.42,4.18842325]
[1756602120976,3.98842325,205.47,205.42,3.98842325]
[1756602121269,3.98842325,205.47,205.41,50.88465984]
[1756602121270,3.98842325,205.45,205.41,46.016401]
[1756602121475,3.98842325,205.42,205.41,0.03]
[1756602121857,4.67842325,205.42,205.41,0.03]
[1756602123684,0.69,205.42,205.41,0.03]
[1756602123850,4.67842325,205.42,205.41,0.03]
[1756602124049,35.54649841,205.42,205.41,0.03]
[1756602124269,30.67842325,205.42,205.41,0.03]
[1756602125373,31.55807516,205.42,205.41,0.03]
[1756602125548,35.54649841,205.42,205.41,0.03]
[1756602126479,30.67842325,205.42,205.41,0.03]
[1756602127301,29.08402571,205.42,205.41,0.03]
[1756602129183,32.72853726,205.42,205.41,0.03]
[1756602129802,25.19220643,205.42,205.41,0.03]
[1756602131404,39.59559401,205.41,205.39,0.03]
[1756602131602,39.59559401,205.41,205.38,0.03]
[1756602131603,19.63413127,205.4,205.38,0.03]
[1756602131777,6.03853726,205.39,205.38,0.03]
[1756602132177,6.72853726,205.39,205.38,0.03]
[1756602132686,20.32413127,205.39,205.38,0.03]
[1756602133412,25.19291748,205.39,205.38,0.03]
[1756602133586,66.23291748,205.39,205.38,0.03]
[1756602136700,22.79889177,205.39,205.38,0.03]
[1756602137007,25.19291748,205.39,205.38,0.03]
[1756602139412,22.7825064,205.39,205.38,0.03]
[1756602139610,3.62812618,205.39,205.38,0.03]
[1756602139926,11.5809381,205.39,205.38,0.03]
[1756602140224,20.3077459,205.39,205.38,0.03]
[1756602140430,17.91372019,205.39,205.38,0.03]
[1756602140601,17.22372019,205.39,205.38,0.03]
[1756602140806,29.62812618,205.39,205.38,0.03]
[1756602141006,32.02215189,205.39,205.38,0.03]
[1756602141705,32.71215189,205.39,205.38,0.03]
[1756602142125,37.5809381,205.39,205.38,0.03]
[1756602143132,92.17653211,205.39,205.38,0.03]
[1756602144517,51.17653211,205.39,205.38,0.03]
[1756602144731,32.08215189,205.39,205.38,0.03]
[1756602146123,29.68812618,205.39,205.38,0.03]
[1756602146338,32.08215189,205.39,205.38,0.03]
[1756602146646,29.68812618,205.39,205.38,0.03]
[1756602147149,3.68812618,205.39,205.38,0.03]
[1756602147438,0.06,205.39,205.38,2.62402571]
[1756602147629,0.06,205.42,205.38,2.62402571]
[1756602147813,0.06,205.42,205.41,2.39402571]
[1756602148214,0.06,205.42,205.41,2.53402571]
[1756602148838,0.06,205.42,205.41,5.00831215]
[1756602149023,0.06,205.42,205.41,0.14]
[1756602149223,0.06,205.42,205.4,4.899665]
[1756602149437,0.06,205.42,205.4,0.14]
[1756602149741,0.06,205.42,205.41,0.14]
[1756602149943,0.06,205.42,205.4,2.39402571]
[1756602150140,0.06,205.42,205.38,4.89897698]
[1756602150141,0.06,205.42,205.41,2.53402571]
[1756602150531,0.06,205.42,205.4,2.39402571]
[1756602150833,0.06,205.42,205.39,2.53402571]
[1756602151222,0.06,205.42,205.38,2.424025]
[1756602151427,2.39402571,205.41,205.38,0.03]
[1756602151638,6.01971496,205.41,205.38,0.03]
[1756602151940,29.17402571,205.42,205.38,0.03]
[1756602152146,3.62571402,205.41,205.38,0.03]
[1756602152314,29.17402571,205.42,205.38,0.03]
[1756602152517,3.62674146,205.41,205.38,0.03]
[1756602152724,29.17402571,205.42,205.38,0.03]
[1756602152934,3.62674097,205.41,205.38,0.03]
[1756602153134,26.0,205.41,205.38,0.03]
[1756602153476,29.11402571,205.41,205.38,0.03]
[1756602153627,3.62778811,205.4,205.38,0.03]
[1756602153832,3.11402571,205.41,205.38,0.03]
[1756602154032,3.11402571,205.39,205.38,0.03]
[1756602154342,6.74222663,205.39,205.38,0.03]
[1756602155438,11.61101284,205.39,205.38,0.03]
[1756602156227,6.74222663,205.39,205.38,0.03]
[1756602156428,32.74222663,205.39,205.38,0.03]
[1756602156829,30.34820092,205.39,205.38,0.03]
[1756602157146,32.74222663,205.39,205.38,0.03]
[1756602157726,37.61101284,205.39,205.38,0.03]
[1756602158149,11.61101284,205.39,205.38,0.03]
[1756602158651,25.20660685,205.39,205.38,0.03]
[1756602158829,66.10660685,205.39,205.38,0.03]
[1756602160549,66.11232856,205.39,205.38,0.03]
[1756602161947,66.11232856,205.39,205.38,1e-08]
[1756602161948,68.06531056,205.39,205.38,1e-08]
[1756602162137,39.59559401,205.36,205.35,0.03]
[1756602162334,13.59559401,205.35,205.27,0.1]
[1756602162535,19.62354235,205.34,205.27,0.1]
[1756602162949,20.34354235,205.34,205.27,0.1]
[1756602163258,24.24475265,205.34,205.27,0.1]
[1756602163837,20.34354235,205.34,205.27,0.1]
[1756602164152,25.2135141,205.34,205.27,0.1]
[1756602164763,25.2135141,205.34,205.28,0.17]
[1756602164958,19.62354235,205.34,205.28,0.17]
[1756602165359,25.2135141,205.34,205.28,0.17]
[1756602166570,25.2135141,205.34,205.27,0.1]
[1756602170047,17.94951664,205.34,205.27,0.1]
[1756602170248,3.63392263,205.34,205.27,4.97162931]
[1756602170465,3.63392263,205.36,205.33,2.59402571]
[1756602170661,3.63392263,205.36,205.35,2.39402571]
[1756602170964,3.6370254,205.36,205.35,2.56402571]
[1756602171161,3.4670254,205.36,205.35,2.56402571]
[1756602171372,0.06,205.42,205.35,0.17]
[1756602171564,26.06,205.42,205.38,2.39402571]
[1756602171763,26.06,205.42,205.37,2.39402571]
[1756602171967,26.06,205.42,205.38,2.39402571]
[1756602172277,28.45402571,205.42,205.36,2.39402571]
[1756602172862,28.45402571,205.42,205.37,2.39402571]
[1756602173082,28.45402571,205.42,205.36,2.39402571]
[1756602173380,2.39402571,205.41,205.35,2.39402571]
[1756602173560,2.39402571,205.4,205.34,7.25347071]
[1756602173885,28.39402571,205.39,205.33,2.42402571]
[1756602174257,2.39402571,205.38,205.33,2.42402571]
[1756602174859,2.39402571,205.38,205.33,0.03]
[1756602175065,2.39402571,205.37,205.33,0.03]
[1756602175263,28.39402571,205.34,205.33,0.03]
[1756602175464,2.39402571,205.34,205.33,0.03]
[1756602176977,2.39402571,205.35,205.33,0.03]
[1756602177487,3.99220422,205.34,205.33,0.03]
[1756602177876,26.72,205.36,205.33,0.03]
[1756602178189,3.99220422,205.35,205.33,0.03]
[1756602178371,29.99220422,205.34,205.33,0.03]
[1756602179067,30.71220422,205.34,205.33,0.03]
[1756602179268,9.58217597,205.34,205.33,0.03]
[1756602180108,23.17776998,205.34,205.33,0.03]
[1756602180300,45.18556576,205.34,205.33,0.03]
[1756602180507,23.17776998,205.34,205.33,0.03]
[1756602181563,49.17776998,205.34,205.33,0.03]
[1756602181800,23.17776998,205.34,205.33,0.03]
[1756602182370,0.72,205.34,205.33,0.03]
[1756602182692,4.66220422,205.34,205.33,0.03]
[1756602182892,30.66220422,205.34,205.33,0.03]
[1756602183082,47.89752893,205.34,205.33,0.03]
[1756602184386,52.76750068,205.34,205.33,0.03]
[1756602187681,43.23532471,205.34,205.33,0.03]
[1756602187883,47.22752893,205.34,205.33,0.03]
[1756602188777,29.6397307,205.34,205.33,0.03]
[1756602189009,38.50190667,205.34,205.33,0.03]
[1756602189178,34.30193492,205.34,205.33,0.03]
[1756602189506,38.50190667,205.34,205.33,0.03]
[1756602190194,52.76750068,205.34,205.33,0.03]
[1756602190882,3.6397307,205.34,205.33,0.03]
[1756602191299,8.86217597,205.34,205.33,0.03]
[1756602191505,17.90318392,205.34,205.33,0.03]
[1756602191673,3.63758991,205.34,205.33,0.03]
[1756602192802,7.62979413,205.34,205.33,0.03]
[1756602193800,3.63758991,205.34,205.33,0.03]
[1756602193978,4.05220422,205.35,205.33,0.03]
[1756602194172,3.99220422,205.34,205.33,0.03]
[1756602194396,4.05220422,205.35,205.33,0.03]
[1756602194876,30.05220422,205.35,205.33,0.03]
[1756602195073,0.06,205.35,205.33,0.03]
[1756602196095,0.06,205.35,205.34,3.99220422]
[1756602196285,0.06,205.35,205.34,8.89294522]
[1756602197310,0.06,205.35,205.34,7.29467717]
[1756602197801,0.06,205.35,205.34,12.16464892]
[1756602198529,0.06,205.35,205.34,4.900741]
[1756602198700,0.06,205.35,205.33,0.03]
[1756602199593,3.12393617,205.35,205.33,0.03]
[1756602199982,2.45393617,205.35,205.33,0.03]
[1756602200484,0.06,205.35,205.33,0.03]
[1756602201484,0.06,205.35,205.34,2.39393617]
[1756602201802,0.06,205.35,205.34,4.86997175]
[1756602202007,0.06,205.35,205.33,0.03]
[1756602204305,0.06,205.35,205.33,2.423937]
[1756602205901,0.06,205.35,205.33,0.03]
[1756602206219,3.12393617,205.35,205.33,0.03]
[1756602206523,0.06,205.35,205.33,0.03]
[1756602207813,0.73,205.35,205.33,0.03]
[1756602208918,0.67,205.34,205.33,0.03]
[1756602209722,3.12393617,205.35,205.33,0.03]
[1756602210526,0.67,205.34,205.33,0.03]
[1756602211616,2.45393617,205.35,205.33,0.03]
[1756602212200,3.16393617,205.35,205.33,0.03]
[1756602212416,0.71,205.34,205.33,0.03]
[1756602213739,29.10393617,205.34,205.33,0.03]
[1756602214501,33.97390792,205.34,205.33,0.03]
[1756602214907,47.56950193,205.34,205.33,0.03]
[1756602215414,39.59559401,205.31,205.3,0.03]
[1756602215726,13.59559401,205.3,205.28,0.03]
[1756602216028,2.39393617,205.29,205.28,0.03]
[1756602216228,15.98953018,205.29,205.28,0.03]
[1756602216724,21.57068805,205.29,205.28,0.03]
[1756602217319,26.0,205.26,205.18,5.5]
[1756602217521,0.71,205.25,205.15,64.37447499]
[1756602217824,2.39393617,205.21,205.16,14.653088]
[1756602218038,2.39393617,205.21,205.16,14.683088]
[1756602218343,0.71,205.24,205.18,2.39393617]
[1756602218547,3.10393617,205.24,205.19,2.39393617]
[1756602219062,29.10393617,205.24,205.18,7.26748186]
[1756602219221,2.39393617,205.23,205.18,7.26748186]
[1756602219421,2.39393617,205.24,205.19,0.03]
[1756602219621,2.39393617,205.24,205.19,2.42393617]
[1756602220142,0.71,205.24,205.18,4.87354569]
[1756602220345,3.06437509,205.24,205.18,7.26748186]
[1756602221023,0.67043892,205.24,205.18,2.39393617]
[1756602221437,3.06437509,205.24,205.18,2.39393617]
[1756602221749,0.67043892,205.24,205.17,4.90399049]
[1756602221949,2.39393617,205.23,205.17,7.29792666]
[1756602222241,2.39393617,205.23,205.16,14.653088]
[1756602222442,2.39393617,205.21,205.16,17.04702417]
[1756602222616,0.71,205.2,205.16,14.653088]
[1756602222823,0.71,205.2,205.16,2.39393617]
[1756602223022,2.39393617,205.21,205.16,7.26655917]
[1756602223325,3.10393617,205.21,205.16,7.26655917]
[1756602223527,2.39393617,205.21,205.16,4.872623]
[1756602223747,3.10393617,205.2,205.16,4.872623]
[1756602223925,2.39393617,205.18,205.11,40.62]
[1756602224130,3.10393617,205.19,205.13,2.39393617]
[1756602224524,0.71,205.19,205.13,2.39393617]
[1756602224728,3.10393617,205.19,205.14,2.39393617]
[1756602225028,0.71,205.23,205.17,2.39393617]
[1756602225227,3.10393617,205.23,205.17,2.39393617]
[1756602225652,2.39393617,205.21,205.15,4.874953]
[1756602225843,3.10393617,205.2,205.15,2.39393617]
[1756602226027,0.71,205.19,205.14,2.39393617]
[1756602226730,0.71,205.21,205.16,2.39393617]
[1756602226926,2.39393617,205.19,205.14,2.39393617]
[1756602227143,0.71,205.18,205.14,2.39393617]
[1756602227536,2.39393617,205.19,205.14,2.39393617]
[1756602227744,26.71,205.2,205.16,2.39393617]
[1756602227943,29.10393617,205.2,205.15,2.39393617]
[1756602228128,26.0,205.2,205.14,0.07]
[1756602228447,0.71,205.21,205.16,2.39393617]
[1756602228751,0.71,205.2,205.16,2.39393617]
[1756602229536,0.71,205.2,205.16,7.26813296]
[1756602229943,0.71,205.2,205.16,4.87419679]
[1756602230144,0.71,205.2,205.16,7.26813296]
[1756602230651,28.39393617,205.21,205.16,7.26813296]
[1756602230852,29.10393617,205.21,205.16,7.26813296]
[1756602231153,0.71,205.2,205.14,0.07]
[1756602231344,3.10393617,205.2,205.15,2.39393617]
[1756602231539,4.87281941,205.22,205.15,2.39393617]
[1756602231749,0.71,205.19,205.15,2.39393617]
[1756602232247,0.71,205.19,205.14,4.87466374]
[1756602232442,0.71,205.19,205.15,2.39393617]
[1756602232641,2.39393617,205.2,205.14,4.87466374]
[1756602232840,0.71,205.2,205.16,2.39393617]
[1756602233537,2.39393617,205.21,205.16,2.39393617]
[1756602233737,0.71,205.2,205.17,2.39393617]
[1756602234337,0.71,205.24,205.19,2.39393617]
[1756602234550,0.71,205.23,205.2,2.39393617]
[1756602234752,26.71,205.23,205.2,2.39393617]
[1756602235840,0.71,205.22,205.2,2.39393617]
[1756602236056,26.71,205.24,205.2,2.39393617]
[1756602236248,0.71,205.23,205.2,2.39393617]
[1756602237055,26.0,205.24,205.2,2.39393617]
[1756602237361,0.71,205.22,205.19,2.39393617]
[1756602238942,0.71,205.22,205.2,2.39393617]
[1756602239264,0.71,205.22,205.19,2.39393617]
[1756602240164,0.06,205.24,205.19,2.39393617]
[1756602240347,0.77,205.24,205.21,2.39393617]
[1756602240544,0.71,205.23,205.18,4.87372306]
[1756602240747,0.71,205.22,205.19,2.39393617]
[1756602241573,26.0,205.23,205.2,2.39393617]
[1756602241948,0.69,205.22,205.17,59.58564893]
[1756602242148,2.45393617,205.24,205.19,2.39393617]
[1756602242669,0.69,205.23,205.17,59.58564893]
[1756602242848,0.69,205.23,205.19,2.39393617]
[1756602243051,2.45393617,205.24,205.19,2.39393617]
[1756602243369,0.69,205.22,205.19,2.39393617]
[1756602243745,0.69,205.22,205.17,55.211656]
[1756602243945,0.69,205.22,205.18,2.39393617]
[1756602244163,0.69,205.22,205.19,2.39393617]
[1756602244367,0.69,205.21,205.19,2.39393617]
[1756602244562,0.69,205.23,205.19,2.39393617]
[1756602244965,0.69,205.22,205.17,60.08566187]
[1756602245270,0.69,205.22,205.2,2.39393617]
[1756602246147,0.69,205.22,205.18,4.87371974]
[1756602246348,0.69,205.22,205.17,60.08564446]
[1756602246673,0.69,205.22,205.19,2.39393617]
[1756602247373,0.06,205.24,205.21,28.39393617]
[1756602247575,0.06,205.24,205.23,2.39393617]
[1756602248079,0.06,205.27,205.23,4.41672717]
[1756602248278,0.06,205.27,205.26,2.39393617]
[1756602248657,0.06,205.27,205.25,26.0]
[1756602248968,0.06,205.27,205.26,42.91393617]
[1756602249158,0.69,205.26,205.23,1.952791]
[1756602249361,2.39393617,205.24,205.21,40.52]
[1756602249571,0.69,205.23,205.21,40.52]
[1756602251077,0.06,205.27,205.21,40.52]
[1756602251278,0.06,205.27,205.25,7.2659604]
[1756602251580,0.06,205.27,205.24,2.39393617]
[1756602251785,0.06,205.27,205.25,2.39393617]
[1756602252081,3.08393617,205.26,205.19,2.393936]
[1756602252281,0.06,205.27,205.19,2.393936]
[1756602252282,0.69,205.25,205.21,2.39393617]
[1756602252578,0.06,205.27,205.24,2.39393617]
[1756602252785,0.75,205.27,205.26,2.39393617]
[1756602252970,0.75,205.27,205.24,2.39393617]
[1756602253486,0.06,205.27,205.25,2.39393617]
[1756602253666,0.06,205.27,205.26,2.39393617]
[1756602254280,0.06,205.27,205.26,2.393936]
[1756602254486,0.06,205.27,205.26,4.78787217]
[1756602254980,0.06,205.27,205.26,2.393936]
[1756602255183,0.06,205.27,205.26,4.78787217]
[1756602255664,0.06,205.27,205.26,9.65974199]
[1756602256080,0.06,205.27,205.26,7.26580582]
[1756602256381,0.06,205.27,205.26,9.65974199]
[1756602257180,0.75,205.35,205.26,35.43501055]
[1756602257364,0.75,205.35,205.32,2.39393617]
[1756602257567,0.69,205.34,205.32,40.48]
[1756602257766,0.69,205.34,205.32,45.35037806]
[1756602258195,0.69,205.34,205.32,40.48]
[1756602258390,0.69,205.33,205.32,40.48]
[1756602258885,0.69,205.33,205.26,26.0]
[1756602259067,0.69,205.32,205.28,40.46]
[1756602259261,0.06,205.35,205.29,2.39393617]
[1756602259465,0.75,205.35,205.3,2.39393617]
[1756602259662,0.69,205.34,205.3,9.2169531]
[1756602260065,0.69,205.33,205.3,9.2169531]
[1756602260268,0.75,205.35,205.31,2.39393617]
[1756602260466,0.06,205.32,205.31,2.39393617]
[1756602261365,0.06,205.32,205.31,4.34625117]
[1756602262387,0.06,205.32,205.31,9.21693452]
[1756602262778,0.06,205.32,205.31,7.26461952]
[1756602264094,3.14393617,205.32,205.3,1.952315]
[1756602264391,3.08393617,205.31,205.22,4.87281941]
[1756602264591,0.69,205.3,205.25,42.83393617]
[1756602264890,0.06,205.32,205.27,2.39393617]
[1756602265093,0.69,205.3,205.27,2.39393617]
[1756602265499,0.69,205.29,205.27,2.39393617]
[1756602265671,0.69,205.31,205.27,2.39393617]
[1756602265873,0.06,205.32,205.29,4.87115787]
[1756602266177,0.06,205.32,205.29,45.29115787]
[1756602266178,0.75,205.32,205.29,45.29115787]
[1756602267287,0.69,205.31,205.29,45.29115787]
[1756602267590,0.69,205.3,205.29,40.42]
[1756602268289,3.08393617,205.3,205.29,40.42]
[1756602268674,0.69,205.3,205.29,40.42]
[1756602268874,0.06,205.32,205.29,45.29115787]
[1756602269073,0.06,205.32,205.29,47.68509404]
[1756602269074,0.75,205.32,205.29,47.68509404]
[1756602269298,0.69,205.31,205.29,45.29115787]
[1756602269986,0.06,205.32,205.29,45.29115787]
[1756602270183,0.69,205.31,205.29,45.29115787]
[1756602270380,0.06,205.32,205.3,2.39393617]
[1756602270692,0.06,205.32,205.31,2.39393617]
[1756602270896,0.06,205.32,205.29,47.24347187]
[1756602271071,0.06,205.32,205.31,2.39393617]
[1756602272071,0.06,205.32,205.29,47.24347187]
[1756602272274,0.06,205.32,205.31,2.39393617]
[1756602272672,0.06,205.32,205.29,6.82347187]
[1756602272873,0.06,205.32,205.31,2.39393617]
[1756602273074,0.06,205.32,205.3,40.38]
[1756602273278,0.06,205.32,205.3,42.77393617]
[1756602273697,0.06,205.32,205.31,2.39393617]
[1756602274289,0.06,205.35,205.32,13.59559401]
[1756602274610,0.06,205.35,205.34,28.39393617]
[1756602274786,0.06,205.35,205.34,2.39393617]